Workbook

Sheet Sheet1
A1: 望谟县公安局2024年公开招聘警务辅助人员成绩公示
A2: 序号 | B2: 姓名 | C2: 性别 | D2: 报考职位 | E2: 职位代码 | F2: 笔试成绩 | G2: 加分 | H2: 笔试总成绩 | I2: 面试成绩 | J2: 总成绩 | K2: 排名 | L2: 体能是否合格
A3: 1 | B3: 辜金枚 | C3: 女 | D3: 拘留所（文职） | E3: 01 | F3: =VLOOKUP(B3,[1]Sheet1!$B$3:$G$3000,6,FALSE) -> 71 | G3: =VLOOKUP(B3,[1]Sheet1!$B$3:$H$3000,7,FALSE) -> 0 | H3: =F3+G3 -> 71 | I3: 82.3 | J3: =(H3+I3)/2 -> 76.65 | K3: 1 | L3: 合格
A4: 2 | B4: 蔡学巧 | C4: 女 | D4: 拘留所（文职） | E4: 01 | F4: =VLOOKUP(B4,[1]Sheet1!$B$3:$G$3000,6,FALSE) -> 62 | G4: =VLOOKUP(B4,[1]Sheet1!$B$3:$H$3000,7,FALSE) -> 0 | H4: =F4+G4 -> 62 | I4: 83.3 | J4: =(H4+I4)/2 -> 72.65 | K4: 2 | L4: 合格
A5: 3 | B5: 黄乾 | C5: 男 | D5: 禁毒办辅警（文职） | E5: 02 | F5: =VLOOKUP(B5,[1]Sheet1!$B$3:$G$3000,6,FALSE) -> 64 | G5: =VLOOKUP(B5,[1]Sheet1!$B$3:$H$3000,7,FALSE) -> 0 | H5: =F5+G5 -> 64 | I5: 60.6 | J5: =(H5+I5)/2 -> 62.3 | K5: 1 | L5: 合格
A6: 4 | B6: 杨秀春 | C6: 男 | D6: 禁毒办辅警 | E6: 04 | F6: =VLOOKUP(B6,[1]Sheet1!$B$3:$G$3000,6,FALSE) -> 69 | G6: =VLOOKUP(B6,[1]Sheet1!$B$3:$H$3000,7,FALSE) -> 0 | H6: =F6+G6 -> 69 | I6: 73 | J6: =(H6+I6)/2 -> 71 | K6: 1 | L6: 合格
A7: 5 | B7: 杨小腊 | C7: 女 | D7: 刑侦大队辅警 | E7: 06 | F7: =VLOOKUP(B7,[1]Sheet1!$B$3:$G$3000,6,FALSE) -> 74 | G7: =VLOOKUP(B7,[1]Sheet1!$B$3:$H$3000,7,FALSE) -> 0 | H7: =F7+G7 -> 74 | I7: 80 | J7: =(H7+I7)/2 -> 77 | K7: 1 | L7: 合格
A8: 6 | B8: 刘丽 | C8: 女 | D8: 刑侦大队辅警 | E8: 06 | F8: =VLOOKUP(B8,[1]Sheet1!$B$3:$G$3000,6,FALSE) -> 67 | G8: =VLOOKUP(B8,[1]Sheet1!$B$3:$H$3000,7,FALSE) -> 0 | H8: =F8+G8 -> 67 | I8: 79.3 | J8: =(H8+I8)/2 -> 73.15 | K8: 2 | L8: 合格
A9: 7 | B9: 沈真龙 | C9: 男 | D9: 刑侦大队 | E9: 07 | F9: =VLOOKUP(B9,[1]Sheet1!$B$3:$G$3000,6,FALSE) -> 73 | G9: =VLOOKUP(B9,[1]Sheet1!$B$3:$H$3000,7,FALSE) -> 5 | H9: =F9+G9 -> 78 | I9: 82.3 | J9: =(H9+I9)/2 -> 80.15 | K9: 1 | L9: 合格
A10: 8 | B10: 王涛 | C10: 男 | D10: 刑侦大队 | E10: 07 | F10: =VLOOKUP(B10,[1]Sheet1!$B$3:$G$3000,6,FALSE) -> 76 | G10: =VLOOKUP(B10,[1]Sheet1!$B$3:$H$3000,7,FALSE) -> 0 | H10: =F10+G10 -> 76 | I10: 78 | J10: =(H10+I10)/2 -> 77 | K10: 2 | L10: 合格
A11: 9 | B11: 卢虹羽 | C11: 男 | D11: 刑侦大队 | E11: 07 | F11: =VLOOKUP(B11,[1]Sheet1!$B$3:$G$3000,6,FALSE) -> 65 | G11: =VLOOKUP(B11,[1]Sheet1!$B$3:$H$3000,7,FALSE) -> 0 | H11: =F11+G11 -> 65 | I11: 81 | J11: =(H11+I11)/2 -> 73 | K11: 3 | L11: 合格
A12: 10 | B12: 黄光伟 | C12: 男 | D12: 特（巡）警大队 | E12: 08 | F12: =VLOOKUP(B12,[1]Sheet1!$B$3:$G$3000,6,FALSE) -> 61 | G12: =VLOOKUP(B12,[1]Sheet1!$B$3:$H$3000,7,FALSE) -> 0 | H12: =F12+G12 -> 61 | I12: 65.33 | J12: =(H12+I12)/2 -> 63.165 | K12: 3 | L12: 合格
A13: 11 | B13: 晏海兵 | C13: 男 | D13: 特（巡）警大队 | E13: 08 | F13: =VLOOKUP(B13,[1]Sheet1!$B$3:$G$3000,6,FALSE) -> 55 | G13: =VLOOKUP(B13,[1]Sheet1!$B$3:$H$3000,7,FALSE) -> 0 | H13: =F13+G13 -> 55 | I13: 64.67 | J13: =(H13+I13)/2 -> 59.835 | K13: 4 | L13: 合格
A14: 12 | B14: 李鹏 | C14: 男 | D14: 特（巡）警大队 | E14: 08 | F14: =VLOOKUP(B14,[1]Sheet1!$B$3:$G$3000,6,FALSE) -> 75 | G14: =VLOOKUP(B14,[1]Sheet1!$B$3:$H$3000,7,FALSE) -> 0 | H14: =F14+G14 -> 75 | I14: 79.67 | J14: =(H14+I14)/2 -> 77.335 | K14: 1 | L14: 合格
A15: 13 | B15: 班声亮 | C15: 男 | D15: 特（巡）警大队 | E15: 08 | F15: =VLOOKUP(B15,[1]Sheet1!$B$3:$G$3000,6,FALSE) -> 34 | G15: =VLOOKUP(B15,[1]Sheet1!$B$3:$H$3000,7,FALSE) -> 0 | H15: =F15+G15 -> 34 | I15: 64.33 | J15: =(H15+I15)/2 -> 49.165 | K15: 7 | L15: 合格
A16: 14 | B16: 简滴涛 | C16: 男 | D16: 特（巡）警大队 | E16: 08 | F16: =VLOOKUP(B16,[1]Sheet1!$B$3:$G$3000,6,FALSE) -> 55 | G16: =VLOOKUP(B16,[1]Sheet1!$B$3:$H$3000,7,FALSE) -> 0 | H16: =F16+G16 -> 55 | I16: 60.33 | J16: =(H16+I16)/2 -> 57.665 | K16: 5 | L16: 合格
A17: 15 | B17: 曾宇翔 | C17: 男 | D17: 特（巡）警大队 | E17: 08 | F17: =VLOOKUP(B17,[1]Sheet1!$B$3:$G$3000,6,FALSE) -> 44 | G17: =VLOOKUP(B17,[1]Sheet1!$B$3:$H$3000,7,FALSE) -> 0 | H17: =F17+G17 -> 44 | I17: 68.67 | J17: =(H17+I17)/2 -> 56.335 | K17: 6 | L17: 合格
A18: 16 | B18: 蒋大伟 | C18: 男 | D18: 特（巡）警大队 | E18: 08 | F18: =VLOOKUP(B18,[1]Sheet1!$B$3:$G$3000,6,FALSE) -> 63 | G18: =VLOOKUP(B18,[1]Sheet1!$B$3:$H$3000,7,FALSE) -> 0 | H18: =F18+G18 -> 63 | I18: 75 | J18: =(H18+I18)/2 -> 69 | K18: 2 | L18: 合格
A19: 17 | B19: 杨通科 | C19: 男 | D19: 特（巡）警大队 | E19: 08 | F19: =VLOOKUP(B19,[1]Sheet1!$B$3:$G$3000,6,FALSE) -> 45 | G19: =VLOOKUP(B19,[1]Sheet1!$B$3:$H$3000,7,FALSE) -> 0 | H19: =F19+G19 -> 45 | I19: 60.67 | J19: =(H19+I19)/2 -> 52.835 | K19: 4 | L19: 合格
A20: 18 | B20: 王浪 | C20: 男 | D20: 督查大队 | E20: 09 | F20: =VLOOKUP(B20,[1]Sheet1!$B$3:$G$3000,6,FALSE) -> 66 | G20: =VLOOKUP(B20,[1]Sheet1!$B$3:$H$3000,7,FALSE) -> 0 | H20: =F20+G20 -> 66 | I20: 64.33 | J20: =(H20+I20)/2 -> 65.165 | K20: 2 | L20: 合格
A21: 19 | B21: 陈平富 | C21: 女 | D21: 督查大队 | E21: 09 | F21: =VLOOKUP(B21,[1]Sheet1!$B$3:$G$3000,6,FALSE) -> 66 | G21: =VLOOKUP(B21,[1]Sheet1!$B$3:$H$3000,7,FALSE) -> 0 | H21: =F21+G21 -> 66 | I21: 70.33 | J21: =(H21+I21)/2 -> 68.165 | K21: 1 | L21: 合格
A22: 20 | B22: 贝永通 | C22: 男 | D22: 石屯派出所 | E22: 11 | F22: =VLOOKUP(B22,[1]Sheet1!$B$3:$G$3000,6,FALSE) -> 58 | G22: =VLOOKUP(B22,[1]Sheet1!$B$3:$H$3000,7,FALSE) -> 0 | H22: =F22+G22 -> 58 | I22: 73.3 | J22: =(H22+I22)/2 -> 65.65 | K22: 2 | L22: 合格
A23: 21 | B23: 贝启高 | C23: 男 | D23: 石屯派出所 | E23: 11 | F23: =VLOOKUP(B23,[1]Sheet1!$B$3:$G$3000,6,FALSE) -> 62 | G23: =VLOOKUP(B23,[1]Sheet1!$B$3:$H$3000,7,FALSE) -> 0 | H23: =F23+G23 -> 62 | I23: 77 | J23: =(H23+I23)/2 -> 69.5 | K23: 1 | L23: 合格
A24: 22 | B24: 黄伟 | C24: 男 | D24: 石屯派出所 | E24: 11 | F24: =VLOOKUP(B24,[1]Sheet1!$B$3:$G$3000,6,FALSE) -> 59 | G24: =VLOOKUP(B24,[1]Sheet1!$B$3:$H$3000,7,FALSE) -> 0 | H24: =F24+G24 -> 59 | I24: 80 | J24: =(H24+I24)/2 -> 69.5 | K24: 1 | L24: 合格
A25: 23 | B25: 熊杰 | C25: 男 | D25: 郊纳中心派出所辅警 | E25: 12 | F25: =VLOOKUP(B25,[1]Sheet1!$B$3:$G$3000,6,FALSE) -> 62 | G25: =VLOOKUP(B25,[1]Sheet1!$B$3:$H$3000,7,FALSE) -> 0 | H25: =F25+G25 -> 62 | I25: 80.3 | J25: =(H25+I25)/2 -> 71.15 | K25: 1 | L25: 合格
A26: 24 | B26: 韦章漫 | C26: 女 | D26: 郊纳中心派出所辅警 | E26: 12 | F26: =VLOOKUP(B26,[1]Sheet1!$B$3:$G$3000,6,FALSE) -> 69 | G26: =VLOOKUP(B26,[1]Sheet1!$B$3:$H$3000,7,FALSE) -> 0 | H26: =F26+G26 -> 69 | I26: 62 | J26: =(H26+I26)/2 -> 65.5 | K26: 2 | L26: 合格
A27: 25 | B27: 何贵愁 | C27: 女 | D27: 乐元派出所 | E27: 13 | F27: =VLOOKUP(B27,[1]Sheet1!$B$3:$G$3000,6,FALSE) -> 63 | G27: =VLOOKUP(B27,[1]Sheet1!$B$3:$H$3000,7,FALSE) -> 0 | H27: =F27+G27 -> 63 | I27: 82.33 | J27: =(H27+I27)/2 -> 72.665 | K27: 2 | L27: 合格
A28: 26 | B28: 班堂 | C28: 男 | D28: 乐元派出所 | E28: 13 | F28: =VLOOKUP(B28,[1]Sheet1!$B$3:$G$3000,6,FALSE) -> 54 | G28: =VLOOKUP(B28,[1]Sheet1!$B$3:$H$3000,7,FALSE) -> 0 | H28: =F28+G28 -> 54 | I28: 82 | J28: =(H28+I28)/2 -> 68 | K28: 3 | L28: 合格
A29: 27 | B29: 王光亚 | C29: 男 | D29: 乐元派出所 | E29: 13 | F29: =VLOOKUP(B29,[1]Sheet1!$B$3:$G$3000,6,FALSE) -> 69 | G29: =VLOOKUP(B29,[1]Sheet1!$B$3:$H$3000,7,FALSE) -> 0 | H29: =F29+G29 -> 69 | I29: 85.67 | J29: =(H29+I29)/2 -> 77.335 | K29: 1 | L29: 合格
A30: 28 | B30: 杨成美 | C30: 女 | D30: 乐元派出所 | E30: 13 | F30: =VLOOKUP(B30,[1]Sheet1!$B$3:$G$3000,6,FALSE) -> 50 | G30: =VLOOKUP(B30,[1]Sheet1!$B$3:$H$3000,7,FALSE) -> 0 | H30: =F30+G30 -> 50 | I30: 75.33 | J30: =(H30+I30)/2 -> 62.665 | K30: 4 | L30: 合格
A31: 29 | B31: 廖国影 | C31: 女 | D31: 乐元派出所 | E31: 13 | F31: =VLOOKUP(B31,[1]Sheet1!$B$3:$G$3000,6,FALSE) -> 40 | G31: =VLOOKUP(B31,[1]Sheet1!$B$3:$H$3000,7,FALSE) -> 0 | H31: =F31+G31 -> 40 | I31: 74.67 | J31: =(H31+I31)/2 -> 57.335 | K31: 5 | L31: 合格
A32: 30 | B32: 王波 | C32: 男 | D32: 打易派出所辅警 | E32: 14 | F32: =VLOOKUP(B32,[1]Sheet1!$B$3:$G$3000,6,FALSE) -> 60 | G32: =VLOOKUP(B32,[1]Sheet1!$B$3:$H$3000,7,FALSE) -> 0 | H32: =F32+G32 -> 60 | I32: 73 | J32: =(H32+I32)/2 -> 66.5 | K32: 1 | L32: 合格
A33: 31 | B33: 韦玫 | C33: 女 | D33: 桑郎派出所 | E33: 19 | F33: =VLOOKUP(B33,[1]Sheet1!$B$3:$G$3000,6,FALSE) -> 69 | G33: =VLOOKUP(B33,[1]Sheet1!$B$3:$H$3000,7,FALSE) -> 0 | H33: =F33+G33 -> 69 | I33: 89.33 | J33: =(H33+I33)/2 -> 79.165 | K33: 1 | L33: 合格
A34: 32 | B34: 黄小兰 | C34: 女 | D34: 桑郎派出所 | E34: 19 | F34: =VLOOKUP(B34,[1]Sheet1!$B$3:$G$3000,6,FALSE) -> 60 | G34: =VLOOKUP(B34,[1]Sheet1!$B$3:$H$3000,7,FALSE) -> 0 | H34: =F34+G34 -> 60 | I34: 81.67 | J34: =(H34+I34)/2 -> 70.835 | K34: 2 | L34: 合格
A35: 33 | B35: 黄婷婷 | C35: 女 | D35: 桑郎派出所 | E35: 19 | F35: =VLOOKUP(B35,[1]Sheet1!$B$3:$G$3000,6,FALSE) -> 60 | G35: =VLOOKUP(B35,[1]Sheet1!$B$3:$H$3000,7,FALSE) -> 0 | H35: =F35+G35 -> 60 | I35: 75.33 | J35: =(H35+I35)/2 -> 67.665 | K35: 3 | L35: 合格
A36: 34 | B36: 王金洪 | C36: 男 | D36: 新屯派出所 | E36: 22 | F36: =VLOOKUP(B36,[1]Sheet1!$B$3:$G$3000,6,FALSE) -> 45 | G36: =VLOOKUP(B36,[1]Sheet1!$B$3:$H$3000,7,FALSE) -> 0 | H36: =F36+G36 -> 45 | I36: 84 | J36: =(H36+I36)/2 -> 64.5 | K36: 1 | L36: 合格
A37: 35 | B37: 黄家召 | C37: 女 | D37: 王母中心派出所 | E37: 24 | F37: =VLOOKUP(B37,[1]Sheet1!$B$3:$G$3000,6,FALSE) -> 78 | G37: =VLOOKUP(B37,[1]Sheet1!$B$3:$H$3000,7,FALSE) -> 0 | H37: =F37+G37 -> 78 | I37: 70.66 | J37: =(H37+I37)/2 -> 74.33 | K37: 1 | L37: 合格
A38: 36 | B38: 陆天辉 | C38: 女 | D38: 王母中心派出所 | E38: 24 | F38: =VLOOKUP(B38,[1]Sheet1!$B$3:$G$3000,6,FALSE) -> 68 | G38: =VLOOKUP(B38,[1]Sheet1!$B$3:$H$3000,7,FALSE) -> 0 | H38: =F38+G38 -> 68 | I38: 64.33 | J38: =(H38+I38)/2 -> 66.165 | K38: 2 | L38: 合格
A39: 37 | B39: 蒋涵宇 | C39: 男 | D39: 王母中心派出所 | E39: 25 | F39: =VLOOKUP(B39,[1]Sheet1!$B$3:$G$3000,6,FALSE) -> 60 | G39: =VLOOKUP(B39,[1]Sheet1!$B$3:$H$3000,7,FALSE) -> 5 | H39: =F39+G39 -> 65 | I39: 72 | J39: =(H39+I39)/2 -> 68.5 | K39: 4 | L39: 合格
A40: 38 | B40: 罗冬祥 | C40: 男 | D40: 王母中心派出所 | E40: 25 | F40: =VLOOKUP(B40,[1]Sheet1!$B$3:$G$3000,6,FALSE) -> 65 | G40: =VLOOKUP(B40,[1]Sheet1!$B$3:$H$3000,7,FALSE) -> 0 | H40: =F40+G40 -> 65 | I40: 71.66 | J40: =(H40+I40)/2 -> 68.33 | K40: 5 | L40: 合格
A41: 39 | B41: 王波 | C41: 男 | D41: 王母中心派出所 | E41: 25 | F41: 63 | H41: 63 | I41: 69 | J41: 66 | K41: 7 | L41: 合格
A42: 40 | B42: 刘蒙恩 | C42: 男 | D42: 王母中心派出所 | E42: 25 | F42: =VLOOKUP(B42,[1]Sheet1!$B$3:$G$3000,6,FALSE) -> 55 | G42: =VLOOKUP(B42,[1]Sheet1!$B$3:$H$3000,7,FALSE) -> 0 | H42: =F42+G42 -> 55 | I42: 73 | J42: =(H42+I42)/2 -> 64 | K42: 10 | L42: 合格
A43: 41 | B43: 杨超 | C43: 男 | D43: 王母中心派出所 | E43: 25 | F43: =VLOOKUP(B43,[1]Sheet1!$B$3:$G$3000,6,FALSE) -> 72 | G43: =VLOOKUP(B43,[1]Sheet1!$B$3:$H$3000,7,FALSE) -> 0 | H43: =F43+G43 -> 72 | I43: 70.66 | J43: =(H43+I43)/2 -> 71.33 | K43: 2 | L43: 合格
A44: 42 | B44: 赵大贵 | C44: 男 | D44: 王母中心派出所 | E44: 25 | F44: =VLOOKUP(B44,[1]Sheet1!$B$3:$G$3000,6,FALSE) -> 57 | G44: =VLOOKUP(B44,[1]Sheet1!$B$3:$H$3000,7,FALSE) -> 0 | H44: =F44+G44 -> 57 | I44: 67 | J44: =(H44+I44)/2 -> 62 | K44: 13 | L44: 合格
A45: 43 | B45: 罗永学 | C45: 男 | D45: 王母中心派出所 | E45: 25 | F45: =VLOOKUP(B45,[1]Sheet1!$B$3:$G$3000,6,FALSE) -> 61 | G45: =VLOOKUP(B45,[1]Sheet1!$B$3:$H$3000,7,FALSE) -> 0 | H45: =F45+G45 -> 61 | I45: 71.66 | J45: =(H45+I45)/2 -> 66.33 | K45: 6 | L45: 合格
A46: 44 | B46: 程国 | C46: 男 | D46: 王母中心派出所 | E46: 25 | F46: =VLOOKUP(B46,[1]Sheet1!$B$3:$G$3000,6,FALSE) -> 63 | G46: =VLOOKUP(B46,[1]Sheet1!$B$3:$H$3000,7,FALSE) -> 0 | H46: =F46+G46 -> 63 | I46: 68.66 | J46: =(H46+I46)/2 -> 65.83 | K46: 8 | L46: 合格
A47: 45 | B47: 罗纲 | C47: 男 | D47: 王母中心派出所 | E47: 25 | F47: =VLOOKUP(B47,[1]Sheet1!$B$3:$G$3000,6,FALSE) -> 53 | G47: =VLOOKUP(B47,[1]Sheet1!$B$3:$H$3000,7,FALSE) -> 0 | H47: =F47+G47 -> 53 | I47: 63.66 | J47: =(H47+I47)/2 -> 58.33 | K47: 14 | L47: 合格
A48: 46 | B48: 曾仲 | C48: 男 | D48: 王母中心派出所 | E48: 25 | F48: =VLOOKUP(B48,[1]Sheet1!$B$3:$G$3000,6,FALSE) -> 58 | G48: =VLOOKUP(B48,[1]Sheet1!$B$3:$H$3000,7,FALSE) -> 0 | H48: =F48+G48 -> 58 | I48: 69.66 | J48: =(H48+I48)/2 -> 63.83 | K48: 11 | L48: 合格
A49: 47 | B49: 谢健海 | C49: 男 | D49: 王母中心派出所 | E49: 25 | F49: =VLOOKUP(B49,[1]Sheet1!$B$3:$G$3000,6,FALSE) -> 59 | G49: =VLOOKUP(B49,[1]Sheet1!$B$3:$H$3000,7,FALSE) -> 0 | H49: =F49+G49 -> 59 | I49: 69.66 | J49: =(H49+I49)/2 -> 64.33 | K49: 9 | L49: 合格
A50: 48 | B50: 岳奎 | C50: 男 | D50: 王母中心派出所 | E50: 25 | F50: =VLOOKUP(B50,[1]Sheet1!$B$3:$G$3000,6,FALSE) -> 72 | G50: =VLOOKUP(B50,[1]Sheet1!$B$3:$H$3000,7,FALSE) -> 0 | H50: =F50+G50 -> 72 | I50: 77.66 | J50: =(H50+I50)/2 -> 74.83 | K50: 1 | L50: 合格
A51: 49 | B51: 罗国智 | C51: 男 | D51: 王母中心派出所 | E51: 25 | F51: =VLOOKUP(B51,[1]Sheet1!$B$3:$G$3000,6,FALSE) -> 69 | G51: =VLOOKUP(B51,[1]Sheet1!$B$3:$H$3000,7,FALSE) -> 0 | H51: =F51+G51 -> 69 | I51: 72 | J51: =(H51+I51)/2 -> 70.5 | K51: 3 | L51: 合格
A52: 50 | B52: 曾兴礼 | C52: 男 | D52: 王母中心派出所 | E52: 25 | F52: =VLOOKUP(B52,[1]Sheet1!$B$3:$G$3000,6,FALSE) -> 49 | G52: =VLOOKUP(B52,[1]Sheet1!$B$3:$H$3000,7,FALSE) -> 0 | H52: =F52+G52 -> 49 | I52: 62.66 | J52: =(H52+I52)/2 -> 55.83 | K52: 15 | L52: 合格
A53: 51 | B53: 苏家学 | C53: 男 | D53: 王母中心派出所 | E53: 25 | F53: =VLOOKUP(B53,[1]Sheet1!$B$3:$G$3000,6,FALSE) -> 56 | G53: =VLOOKUP(B53,[1]Sheet1!$B$3:$H$3000,7,FALSE) -> 0 | H53: =F53+G53 -> 56 | I53: 69.66 | J53: =(H53+I53)/2 -> 62.83 | K53: 12 | L53: 合格
A54: 52 | B54: 王广 | C54: 男 | D54: 边饶派出所 | E54: 26 | F54: =VLOOKUP(B54,[1]Sheet1!$B$3:$G$3000,6,FALSE) -> 63 | G54: =VLOOKUP(B54,[1]Sheet1!$B$3:$H$3000,7,FALSE) -> 0 | H54: =F54+G54 -> 63 | I54: 82 | J54: =(H54+I54)/2 -> 72.5 | K54: 1 | L54: 合格
A55: 53 | B55: 黄杰 | C55: 男 | D55: 蔗香派出所 | E55: 27 | F55: =VLOOKUP(B55,[1]Sheet1!$B$3:$G$3000,6,FALSE) -> 77 | G55: =VLOOKUP(B55,[1]Sheet1!$B$3:$H$3000,7,FALSE) -> 0 | H55: =F55+G55 -> 77 | I55: 77.67 | J55: =(H55+I55)/2 -> 77.335 | K55: 1 | L55: 合格
A56: 54 | B56: 唐德锦 | C56: 男 | D56: 交通警察大队 | E56: 28 | F56: =VLOOKUP(B56,[1]Sheet1!$B$3:$G$3000,6,FALSE) -> 64 | G56: =VLOOKUP(B56,[1]Sheet1!$B$3:$H$3000,7,FALSE) -> 0 | H56: =F56+G56 -> 64 | I56: 66.67 | J56: =(H56+I56)/2 -> 65.335 | K56: 2 | L56: 合格
A57: 55 | B57: 韦帮利 | C57: 男 | D57: 交通警察大队 | E57: 28 | F57: =VLOOKUP(B57,[1]Sheet1!$B$3:$G$3000,6,FALSE) -> 69 | G57: =VLOOKUP(B57,[1]Sheet1!$B$3:$H$3000,7,FALSE) -> 0 | H57: =F57+G57 -> 69 | I57: 70 | J57: =(H57+I57)/2 -> 69.5 | K57: 1 | L57: 合格
A58: 56 | B58: 王秋霖 | C58: 男 | D58: 交通警察大队 | E58: 28 | F58: =VLOOKUP(B58,[1]Sheet1!$B$3:$G$3000,6,FALSE) -> 64 | G58: =VLOOKUP(B58,[1]Sheet1!$B$3:$H$3000,7,FALSE) -> 0 | H58: =F58+G58 -> 64 | I58: 66 | J58: =(H58+I58)/2 -> 65 | K58: 3 | L58: 合格
A59: 57 | B59: 黄龙 | C59: 男 | D59: 高速交警 | E59: 33 | F59: =VLOOKUP(B59,[1]Sheet1!$B$3:$G$3000,6,FALSE) -> 73 | G59: =VLOOKUP(B59,[1]Sheet1!$B$3:$H$3000,7,FALSE) -> 5 | H59: =F59+G59 -> 78 | I59: 85 | J59: =(H59+I59)/2 -> 81.5 | K59: 2 | L59: 合格
A60: 58 | B60: 王友 | C60: 男 | D60: 高速交警 | E60: 33 | F60: =VLOOKUP(B60,[1]Sheet1!$B$3:$G$3000,6,FALSE) -> 69 | G60: =VLOOKUP(B60,[1]Sheet1!$B$3:$H$3000,7,FALSE) -> 0 | H60: =F60+G60 -> 69 | I60: 87 | J60: =(H60+I60)/2 -> 78 | K60: 3 | L60: 合格
A61: 59 | B61: 安春秋 | C61: 男 | D61: 高速交警 | E61: 33 | F61: =VLOOKUP(B61,[1]Sheet1!$B$3:$G$3000,6,FALSE) -> 76 | G61: =VLOOKUP(B61,[1]Sheet1!$B$3:$H$3000,7,FALSE) -> 5 | H61: =F61+G61 -> 81 | I61: 82.33 | J61: =(H61+I61)/2 -> 81.665 | K61: 1 | L61: 合格
